[Event "*** Titled Tuesday Blitz"]
[Site "Chess.com"]
[Date "2021.04.06"]
[Round "10"]
[White "atwalcb"]
[Black "Niktlt"]
[Result "0-1"]
[WhiteElo "2469"]
[BlackElo "2576"]
[TimeControl "180+1"]
[EndTime "11:54:39 PDT"]
[Termination "Niktlt won on time"]

1. d4 {[%clk 0:03:00.9]} 1... Nf6 {[%clk 0:03:00]} 2. Bg5 {[%clk 0:02:59.7]}
2... d5 {[%clk 0:02:58.5]} 3. Bxf6 {[%clk 0:02:59.1]} 3... gxf6 {[%clk
0:02:59.4]} 4. c4 {[%clk 0:02:58.2]} 4... c5 {[%clk 0:02:59.3]} 5. dxc5 {[%clk
0:02:56]} 5... Qa5+ {[%clk 0:02:46.5]} 6. Qd2 {[%clk 0:02:56]} 6... Qxc5 {[%clk
0:02:40]} 7. cxd5 {[%clk 0:02:47.3]} 7... Bf5 {[%clk 0:02:39.8]} 8. Nc3 {[%clk
0:02:46.5]} 8... Nd7 {[%clk 0:02:39.3]} 9. e4 {[%clk 0:02:46.7]} 9... Bg6 {[%clk
0:02:39.5]} 10. Rc1 {[%clk 0:02:40]} 10... Qb6 {[%clk 0:02:37.8]} 11. Bb5 {[%clk
0:02:34.3]} 11... h5 {[%clk 0:02:36.5]} 12. Bxd7+ {[%clk 0:02:32.6]} 12... Kxd7
{[%clk 0:02:37.4]} 13. Nge2 {[%clk 0:02:21.5]} 13... Bh6 {[%clk 0:02:37.2]} 14.
f4 {[%clk 0:02:21.8]} 14... Rhc8 {[%clk 0:02:35.7]} 15. g3 {[%clk 0:01:43.8]}
15... Rc4 {[%clk 0:02:33.7]} 16. b3 {[%clk 0:01:40.5]} 16... Rc7 {[%clk
0:02:32.4]} 17. Nd4 {[%clk 0:01:25.9]} 17... Rac8 {[%clk 0:02:28.1]} 18. O-O
{[%clk 0:01:25.9]} 18... Bxe4 {[%clk 0:02:21.9]} 19. Na4 {[%clk 0:00:45.9]}
19... Qa6 {[%clk 0:02:08.6]} 20. Rce1 {[%clk 0:00:45.2]} 20... f5 {[%clk
0:02:07.3]} 21. Qb4 {[%clk 0:00:24]} 21... Qd6 {[%clk 0:01:56.3]} 22. Qb5+
{[%clk 0:00:23.7]} 22... Kd8 {[%clk 0:01:56.7]} 23. b4 {[%clk 0:00:17.2]} 23...
Bg7 {[%clk 0:01:53.9]} 24. Nb3 {[%clk 0:00:14.7]} 24... Rc2 {[%clk 0:01:45.1]}
25. Rf2 {[%clk 0:00:06.9]} 25... Rxf2 {[%clk 0:01:42.3]} 26. Kxf2 {[%clk
0:00:07.8]} 26... Rc2+ {[%clk 0:01:42.6]} 27. Kf1 {[%clk 0:00:05.4]} 27... Qxd5
{[%clk 0:01:37.4]} 28. Qxd5+ {[%clk 0:00:03.9]} 28... Bxd5 {[%clk 0:01:38.3]}
29. Rd1 {[%clk 0:00:03.1]} 29... e6 {[%clk 0:01:38.7]} 30. Nbc5 {[%clk
0:00:02.5]} 30... Kc7 {[%clk 0:01:38.5]} 0-1

[Event "*** Titled Tuesday Blitz"]
[Site "Chess.com"]
[Date "2021.04.06"]
[Round "10"]
[White "Nuvas"]
[Black "vugarrasulov"]
[Result "0-1"]
[WhiteElo "2609"]
[BlackElo "2872"]
[TimeControl "180+1"]
[EndTime "11:54:51 PDT"]
[Termination "vugarrasulov won by resignation"]

1. d4 {[%clk 0:03:00.9]} 1... d5 {[%clk 0:02:59.8]} 2. c4 {[%clk 0:03:01.1]}
2... dxc4 {[%clk 0:03:00.4]} 3. e3 {[%clk 0:03:01.1]} 3... e5 {[%clk 0:02:58.2]}
4. Bxc4 {[%clk 0:03:00.9]} 4... exd4 {[%clk 0:02:58.7]} 5. exd4 {[%clk
0:03:00.5]} 5... Nf6 {[%clk 0:02:59.1]} 6. Qb3 {[%clk 0:02:59.5]} 6... Qe7+
{[%clk 0:02:58.3]} 7. Ne2 {[%clk 0:02:59.3]} 7... Qb4+ {[%clk 0:02:58.7]} 8.
Nbc3 {[%clk 0:02:59]} 8... Qxb3 {[%clk 0:02:58.2]} 9. Bxb3 {[%clk 0:02:59.2]}
9... Bd6 {[%clk 0:02:53.9]} 10. O-O {[%clk 0:02:49.6]} 10... a6 {[%clk
0:02:53.5]} 11. Bf4 {[%clk 0:02:46.2]} 11... O-O {[%clk 0:02:47.8]} 12. Bxd6
{[%clk 0:02:36]} 12... cxd6 {[%clk 0:02:48.7]} 13. Nf4 {[%clk 0:02:21.5]} 13...
Nc6 {[%clk 0:02:48.9]} 14. Rad1 {[%clk 0:02:20]} 14... Bf5 {[%clk 0:02:40.7]}
15. Ncd5 {[%clk 0:02:18.8]} 15... Nxd5 {[%clk 0:02:40.6]} 16. Nxd5 {[%clk
0:02:18.9]} 16... Rac8 {[%clk 0:02:38.7]} 17. Rfe1 {[%clk 0:02:11.1]} 17... Rfe8
{[%clk 0:02:36.7]} 18. Nb6 {[%clk 0:02:07.4]} 18... Rcd8 {[%clk 0:02:34]} 19.
Rxe8+ {[%clk 0:02:02.2]} 19... Rxe8 {[%clk 0:02:34.9]} 20. Nc4 {[%clk
0:02:02.7]} 20... Rd8 {[%clk 0:02:29]} 21. f3 {[%clk 0:01:54.1]} 21... Kf8
{[%clk 0:02:28.6]} 22. Kf2 {[%clk 0:01:53.6]} 22... h5 {[%clk 0:02:27.2]} 23.
Ne3 {[%clk 0:01:53.3]} 23... Bg6 {[%clk 0:02:25.1]} 24. Bd5 {[%clk 0:01:50.7]}
24... Ne7 {[%clk 0:02:17.9]} 25. Be4 {[%clk 0:01:27]} 25... Bxe4 {[%clk
0:02:14.4]} 26. fxe4 {[%clk 0:01:27.9]} 26... Nc6 {[%clk 0:02:14.9]} 27. Rd3
{[%clk 0:01:23.2]} 27... Rc8 {[%clk 0:02:10.1]} 28. Rc3 {[%clk 0:01:19.5]} 28...
Re8 {[%clk 0:02:08.3]} 29. Kf3 {[%clk 0:01:17.2]} 29... Nxd4+ {[%clk 0:02:08.1]}
30. Kf2 {[%clk 0:01:13.9]} 30... Rxe4 {[%clk 0:01:59.4]} 31. Nd5 {[%clk
0:01:13.6]} 31... g5 {[%clk 0:01:55.1]} 32. Rc8+ {[%clk 0:01:11.4]} 32... Kg7
{[%clk 0:01:55]} 33. Nc3 {[%clk 0:01:09.3]} 33... Re7 {[%clk 0:01:53.8]} 34. Rc4
{[%clk 0:01:07]} 34... Nc6 {[%clk 0:01:52.6]} 35. Nd5 {[%clk 0:00:59.3]} 35...
Re5 {[%clk 0:01:52.3]} 36. Ne3 {[%clk 0:00:59.6]} 36... f5 {[%clk 0:01:50.9]}
37. g3 {[%clk 0:00:59]} 37... Kg6 {[%clk 0:01:49.9]} 38. a4 {[%clk 0:00:59]}
38... Rc5 {[%clk 0:01:49.1]} 39. b4 {[%clk 0:00:48]} 39... Rxc4 {[%clk
0:01:48.6]} 40. Nxc4 {[%clk 0:00:48.9]} 40... d5 {[%clk 0:01:47.3]} 41. Nd6
{[%clk 0:00:45.9]} 41... Nxb4 {[%clk 0:01:47.7]} 42. Nxb7 {[%clk 0:00:46.3]}
42... Kf6 {[%clk 0:01:48.4]} 43. Ke3 {[%clk 0:00:42.9]} 43... Ke5 {[%clk
0:01:48.8]} 44. Nc5 {[%clk 0:00:43.6]} 44... d4+ {[%clk 0:01:47.8]} 45. Kd2
{[%clk 0:00:44]} 45... Kd5 {[%clk 0:01:47.2]} 46. Nd7 {[%clk 0:00:44.1]} 46...
Ke6 {[%clk 0:01:44.1]} 47. Nc5+ {[%clk 0:00:41.9]} 47... Kd6 {[%clk 0:01:44.6]}
48. Nb3 {[%clk 0:00:41.1]} 48... Kd5 {[%clk 0:01:45.1]} 49. Nc1 {[%clk
0:00:39.8]} 49... f4 {[%clk 0:01:44.1]} 50. gxf4 {[%clk 0:00:38.9]} 50... gxf4
{[%clk 0:01:45]} 51. Ne2 {[%clk 0:00:36.5]} 51... Ke4 {[%clk 0:01:45.5]} 0-1

[Event "*** Titled Tuesday Blitz"]
[Site "Chess.com"]
[Date "2021.04.06"]
[Round "10"]
[White "IriBu"]
[Black "Nils_03"]
[Result "1/2-1/2"]
[WhiteElo "2548"]
[BlackElo "2405"]
[TimeControl "180+1"]
[EndTime "11:54:55 PDT"]
[Termination "Game drawn by repetition"]

1. e4 {[%clk 0:03:00.9]} 1... c5 {[%clk 0:03:00.5]} 2. Be2 {[%clk 0:03:00.4]}
2... Nc6 {[%clk 0:03:00.5]} 3. f4 {[%clk 0:03:00.7]} 3... g6 {[%clk 0:02:58.7]}
4. Nf3 {[%clk 0:03:01]} 4... Bg7 {[%clk 0:02:59]} 5. O-O {[%clk 0:03:01.6]} 5...
Nf6 {[%clk 0:02:55.4]} 6. d3 {[%clk 0:03:01.3]} 6... d5 {[%clk 0:02:54.4]} 7. e5
{[%clk 0:03:01]} 7... Nd7 {[%clk 0:02:51.4]} 8. c3 {[%clk 0:03:01.3]} 8... d4
{[%clk 0:02:47.4]} 9. cxd4 {[%clk 0:02:56.8]} 9... cxd4 {[%clk 0:02:47.1]} 10.
Nbd2 {[%clk 0:02:56.3]} 10... O-O {[%clk 0:02:46.5]} 11. Ne4 {[%clk 0:02:54.9]}
11... Nb6 {[%clk 0:02:46.6]} 12. Re1 {[%clk 0:02:49.8]} 12... Bf5 {[%clk
0:02:46]} 13. Bf1 {[%clk 0:02:49.6]} 13... Nd5 {[%clk 0:02:38.8]} 14. Kh1 {[%clk
0:02:45.8]} 14... Qb6 {[%clk 0:02:37.9]} 15. h3 {[%clk 0:02:37.7]} 15... Rac8
{[%clk 0:02:37.2]} 16. g4 {[%clk 0:02:35.6]} 16... Bxe4 {[%clk 0:02:37.2]} 17.
dxe4 {[%clk 0:02:32.8]} 17... Ne3 {[%clk 0:02:21.9]} 18. Bxe3 {[%clk 0:02:32]}
18... dxe3 {[%clk 0:02:22.8]} 19. Qe2 {[%clk 0:02:30.2]} 19... Nb4 {[%clk
0:02:18.7]} 20. Rac1 {[%clk 0:02:14.5]} 20... Nxa2 {[%clk 0:02:05.8]} 21. Rxc8
{[%clk 0:02:13.3]} 21... Rxc8 {[%clk 0:02:06.7]} 22. f5 {[%clk 0:02:03.8]} 22...
Nb4 {[%clk 0:01:43.8]} 23. Qxe3 {[%clk 0:02:01.7]} 23... Qxe3 {[%clk 0:01:33.7]}
24. Rxe3 {[%clk 0:02:02.6]} 24... Rc1 {[%clk 0:01:33.4]} 25. Kg2 {[%clk
0:02:01.1]} 25... e6 {[%clk 0:01:32.8]} 26. fxe6 {[%clk 0:01:48.4]} 26... fxe6
{[%clk 0:01:31.8]} 27. Rc3 {[%clk 0:01:43]} 27... Rxc3 {[%clk 0:01:22.6]} 28.
bxc3 {[%clk 0:01:43.9]} 28... Nc6 {[%clk 0:01:22.9]} 29. Bc4 {[%clk 0:01:43.5]}
29... Bxe5 {[%clk 0:01:15.2]} 30. Bxe6+ {[%clk 0:01:41.8]} 30... Kg7 {[%clk
0:01:15.1]} 31. Nxe5 {[%clk 0:01:38.4]} 31... Nxe5 {[%clk 0:01:15.1]} 32. Kf2
{[%clk 0:01:38.5]} 32... Kf6 {[%clk 0:01:13.2]} 33. Bc8 {[%clk 0:01:36.9]} 33...
b6 {[%clk 0:01:11.6]} 34. Ke3 {[%clk 0:01:35.7]} 34... g5 {[%clk 0:01:05.5]} 35.
Ba6 {[%clk 0:01:30.4]} 35... Ke7 {[%clk 0:01:00]} 36. Kd4 {[%clk 0:01:24.8]}
36... Kd6 {[%clk 0:01:00.1]} 37. Bb5 {[%clk 0:01:22]} 37... h6 {[%clk
0:00:59.8]} 38. Ba6 {[%clk 0:01:20.6]} 38... Nc6+ {[%clk 0:00:59]} 39. Kc4
{[%clk 0:01:11]} 39... Ne5+ {[%clk 0:00:56.6]} 40. Kd4 {[%clk 0:01:07]} 40...
Nf3+ {[%clk 0:00:56.1]} 41. Ke3 {[%clk 0:01:03.9]} 41... Ne5 {[%clk 0:00:51.9]}
42. Kd4 {[%clk 0:01:04]} 1/2-1/2

[Event "*** Titled Tuesday Blitz"]
[Site "Chess.com"]
[Date "2021.04.06"]
[Round "10"]
[White "dpopadic"]
[Black "Annagozel"]
[Result "1-0"]
[WhiteElo "2284"]
[BlackElo "1863"]
[TimeControl "180+1"]
[EndTime "11:54:57 PDT"]
[Termination "dpopadic won on time"]

1. e4 {[%clk 0:03:00.9]} 1... e5 {[%clk 0:02:58.9]} 2. Nf3 {[%clk 0:02:59.4]}
2... Nc6 {[%clk 0:02:58.9]} 3. Bb5 {[%clk 0:02:59]} 3... a6 {[%clk 0:02:58]} 4.
Ba4 {[%clk 0:02:59]} 4... Nf6 {[%clk 0:02:58]} 5. O-O {[%clk 0:02:58.8]} 5...
Be7 {[%clk 0:02:56.3]} 6. Re1 {[%clk 0:02:58.9]} 6... b5 {[%clk 0:02:55.3]} 7.
Bb3 {[%clk 0:02:58.9]} 7... d6 {[%clk 0:02:55.7]} 8. c3 {[%clk 0:02:58.5]} 8...
Bg4 {[%clk 0:02:30.7]} 9. d3 {[%clk 0:02:58.2]} 9... O-O {[%clk 0:02:27.7]} 10.
Nbd2 {[%clk 0:02:58.1]} 10... Na5 {[%clk 0:02:22.8]} 11. Bc2 {[%clk 0:02:57.6]}
11... c5 {[%clk 0:02:23.2]} 12. Nf1 {[%clk 0:02:57.5]} 12... Qc7 {[%clk
0:02:16.9]} 13. Ng3 {[%clk 0:02:56.5]} 13... d5 {[%clk 0:01:57.6]} 14. h3 {[%clk
0:02:52.6]} 14... Be6 {[%clk 0:01:55.6]} 15. exd5 {[%clk 0:02:39.8]} 15... Nxd5
{[%clk 0:01:42.8]} 16. Nxe5 {[%clk 0:02:39.8]} 16... Bd6 {[%clk 0:01:40.2]} 17.
d4 {[%clk 0:02:35.5]} 17... cxd4 {[%clk 0:01:28.3]} 18. cxd4 {[%clk 0:02:35.2]}
18... Rac8 {[%clk 0:01:19.2]} 19. Be4 {[%clk 0:02:34.8]} 19... f5 {[%clk
0:01:01.6]} 20. Bf3 {[%clk 0:02:25]} 20... Nb4 {[%clk 0:00:24.5]} 21. Bd2 {[%clk
0:02:16.9]} 21... Nc4 {[%clk 0:00:17]} 22. Nxc4 {[%clk 0:02:15.3]} 22... Bxc4
{[%clk 0:00:16.6]} 23. b3 {[%clk 0:01:54.6]} 23... Bf7 {[%clk 0:00:07.6]} 24.
Nxf5 {[%clk 0:01:47.5]} 24... Bg6 {[%clk 0:00:02.5]} 25. Nxd6 {[%clk 0:01:45.1]}
25... Qxd6 {[%clk 0:00:02.1]} 26. Bxb4 {[%clk 0:01:36.7]} 26... Qxb4 {[%clk
0:00:02.1]} 27. d5 {[%clk 0:01:27.9]} 27... Kh8 {[%clk 0:00:02]} 28. Rc1 {[%clk
0:01:22.7]} 1-0

[Event "*** Titled Tuesday Blitz"]
[Site "Chess.com"]
[Date "2021.04.06"]
[Round "10"]
[White "PowerThinking2650"]
[Black "VladaSviridova"]
[Result "0-1"]
[WhiteElo "2376"]
[BlackElo "2252"]
[TimeControl "180+1"]
[EndTime "11:55:02 PDT"]
[Termination "VladaSviridova won by resignation"]

1. e4 {[%clk 0:03:00.9]} 1... e6 {[%clk 0:02:59.8]} 2. d4 {[%clk 0:03:00.2]}
2... d5 {[%clk 0:02:59.9]} 3. Nd2 {[%clk 0:03:00.7]} 3... c5 {[%clk 0:02:59.7]}
4. Ngf3 {[%clk 0:02:59.9]} 4... cxd4 {[%clk 0:02:59]} 5. exd5 {[%clk 0:03:00.4]}
5... Qxd5 {[%clk 0:02:58.6]} 6. Bc4 {[%clk 0:03:00.8]} 6... Qd7 {[%clk
0:02:58.9]} 7. O-O {[%clk 0:03:00.6]} 7... Nc6 {[%clk 0:02:59.1]} 8. Nb3 {[%clk
0:03:00.1]} 8... a6 {[%clk 0:02:59.8]} 9. Nbxd4 {[%clk 0:03:00]} 9... Nxd4
{[%clk 0:03:00]} 10. Nxd4 {[%clk 0:02:59.9]} 10... Qc7 {[%clk 0:03:00]} 11. b3
{[%clk 0:02:47]} 11... Bd6 {[%clk 0:03:00.3]} 12. Nf3 {[%clk 0:02:45.5]} 12...
Ne7 {[%clk 0:02:41.6]} 13. Bb2 {[%clk 0:02:44.6]} 13... b5 {[%clk 0:02:30.3]}
14. Bd3 {[%clk 0:02:36.5]} 14... Bb7 {[%clk 0:02:23.3]} 15. Qe2 {[%clk
0:02:27.3]} 15... Ng6 {[%clk 0:02:05.6]} 16. Be4 {[%clk 0:02:17.6]} 16... Nf4
{[%clk 0:01:33.4]} 17. Qe3 {[%clk 0:02:17.2]} 17... Bc5 {[%clk 0:00:47.5]} 18.
Bd4 {[%clk 0:02:14.7]} 18... Bxd4 {[%clk 0:00:45.7]} 19. Nxd4 {[%clk 0:02:15.2]}
19... Bxe4 {[%clk 0:00:33.9]} 20. Qxe4 {[%clk 0:02:15.9]} 20... O-O {[%clk
0:00:33.3]} 21. Rad1 {[%clk 0:01:54.7]} 21... Rad8 {[%clk 0:00:31.6]} 22. Nf3
{[%clk 0:01:54.1]} 22... Ng6 {[%clk 0:00:27.8]} 23. g3 {[%clk 0:01:47.9]} 23...
h6 {[%clk 0:00:25.7]} 24. c4 {[%clk 0:01:39.5]} 24... bxc4 {[%clk 0:00:21.5]}
25. bxc4 {[%clk 0:01:40.4]} 25... Qc5 {[%clk 0:00:19.2]} 26. h4 {[%clk
0:01:36.3]} 26... a5 {[%clk 0:00:18.4]} 27. Kg2 {[%clk 0:01:33.9]} 27... a4
{[%clk 0:00:18.4]} 28. h5 {[%clk 0:01:33.7]} 28... Qxh5 {[%clk 0:00:16.7]} 29.
Rc1 {[%clk 0:01:26.6]} 29... Qc5 {[%clk 0:00:16.2]} 30. Nd4 {[%clk 0:01:05.3]}
30... Rxd4 {[%clk 0:00:15.2]} 0-1

[Event "*** Titled Tuesday Blitz"]
[Site "Chess.com"]
[Date "2021.04.06"]
[Round "10"]
[White "iamnotIM"]
[Black "QuintilianoR"]
[Result "0-1"]
[WhiteElo "2580"]
[BlackElo "2706"]
[TimeControl "180+1"]
[EndTime "11:55:07 PDT"]
[Termination "QuintilianoR won by resignation"]

1. Nf3 {[%clk 0:02:50.6]} 1... d5 {[%clk 0:02:59.4]} 2. b3 {[%clk 0:02:41.8]}
2... c5 {[%clk 0:02:57.2]} 3. Bb2 {[%clk 0:02:28.7]} 3... f6 {[%clk 0:02:57.1]}
4. e4 {[%clk 0:02:26.6]} 4... dxe4 {[%clk 0:02:53]} 5. Nh4 {[%clk 0:02:25.8]}
5... Nh6 {[%clk 0:02:50.9]} 6. Bb5+ {[%clk 0:02:12.9]} 6... Nc6 {[%clk
0:02:48.4]} 7. Bxc6+ {[%clk 0:02:11.8]} 7... bxc6 {[%clk 0:02:48.4]} 8. Qh5+
{[%clk 0:01:46.6]} 8... g6 {[%clk 0:02:46.1]} 9. Qxc5 {[%clk 0:01:47]} 9... g5
{[%clk 0:02:40.2]} 10. Qxc6+ {[%clk 0:01:35.2]} 10... Bd7 {[%clk 0:02:38.8]} 11.
Qxe4 {[%clk 0:01:34.1]} 11... gxh4 {[%clk 0:02:38.7]} 12. Bxf6 {[%clk 0:01:34]}
12... Rg8 {[%clk 0:02:30.9]} 13. Bb2 {[%clk 0:01:18.9]} 13... Rc8 {[%clk
0:02:12.1]} 14. Nc3 {[%clk 0:01:04.1]} 14... h3 {[%clk 0:02:04]} 15. O-O-O
{[%clk 0:00:50.9]} 15... hxg2 {[%clk 0:02:02.2]} 16. Rhg1 {[%clk 0:00:50.6]}
16... Bf5 {[%clk 0:01:46.6]} 17. Qa4+ {[%clk 0:00:40.6]} 17... Qd7 {[%clk
0:01:42.6]} 18. Qh4 {[%clk 0:00:30.8]} 18... Rg4 {[%clk 0:01:32.8]} 19. Qh5+
{[%clk 0:00:22.5]} 19... Bg6 {[%clk 0:01:28.7]} 20. Qe5 {[%clk 0:00:23]} 20...
Qf5 {[%clk 0:01:24.1]} 21. Qxf5 {[%clk 0:00:19]} 21... Nxf5 {[%clk 0:01:25]} 22.
d3 {[%clk 0:00:14.8]} 22... Nd4 {[%clk 0:01:21]} 23. h3 {[%clk 0:00:14.2]} 23...
Rg5 {[%clk 0:01:14.6]} 24. Ne4 {[%clk 0:00:13]} 24... Rxc2+ {[%clk 0:01:13.8]}
25. Kb1 {[%clk 0:00:13.5]} 25... Rxb2+ {[%clk 0:01:14.7]} 26. Kxb2 {[%clk
0:00:13.3]} 26... Bxe4 {[%clk 0:01:15.6]} 27. dxe4 {[%clk 0:00:11.4]} 27... Nf3
{[%clk 0:01:15.5]} 28. Kc2 {[%clk 0:00:09.1]} 28... Nxg1 {[%clk 0:01:12]} 29.
Rxg1 {[%clk 0:00:10]} 29... Bg7 {[%clk 0:01:12.4]} 30. f4 {[%clk 0:00:10.2]}
30... Bd4 {[%clk 0:01:11.1]} 0-1

[Event "*** Titled Tuesday Blitz"]
[Site "Chess.com"]
[Date "2021.04.06"]
[Round "10"]
[White "Harry_Rakkel"]
[Black "thechesscorner64"]
[Result "1-0"]
[WhiteElo "2580"]
[BlackElo "2422"]
[TimeControl "180+1"]
[EndTime "11:55:07 PDT"]
[Termination "Harry_Rakkel won on time"]

1. d4 {[%clk 0:03:00.9]} 1... Nf6 {[%clk 0:02:59.3]} 2. c4 {[%clk 0:03:00.8]}
2... e6 {[%clk 0:02:59.6]} 3. Nc3 {[%clk 0:03:00.8]} 3... Bb4 {[%clk 0:02:59.9]}
4. Nf3 {[%clk 0:03:00.7]} 4... b6 {[%clk 0:02:58]} 5. Bg5 {[%clk 0:03:00.4]}
5... Bb7 {[%clk 0:02:58.3]} 6. e3 {[%clk 0:02:59.6]} 6... h6 {[%clk 0:02:57.9]}
7. Bh4 {[%clk 0:02:59.7]} 7... g5 {[%clk 0:02:57.8]} 8. Bg3 {[%clk 0:02:59.7]}
8... Ne4 {[%clk 0:02:57.7]} 9. Qc2 {[%clk 0:02:59.8]} 9... Nxg3 {[%clk
0:02:57.4]} 10. hxg3 {[%clk 0:02:59.1]} 10... Qe7 {[%clk 0:02:55]} 11. g4 {[%clk
0:02:48.7]} 11... d6 {[%clk 0:02:50.2]} 12. O-O-O {[%clk 0:02:45.5]} 12... Bxc3
{[%clk 0:02:44.1]} 13. Qxc3 {[%clk 0:02:44.6]} 13... Nd7 {[%clk 0:02:43.9]} 14.
Nd2 {[%clk 0:02:39.6]} 14... O-O-O {[%clk 0:02:42.6]} 15. f3 {[%clk 0:02:37]}
15... Kb8 {[%clk 0:02:39.4]} 16. Bd3 {[%clk 0:02:35.3]} 16... c5 {[%clk
0:02:32.8]} 17. Kb1 {[%clk 0:02:31.1]} 17... Rc8 {[%clk 0:02:30.4]} 18. dxc5
{[%clk 0:02:29.7]} 18... Nxc5 {[%clk 0:02:28.9]} 19. Bc2 {[%clk 0:02:29.2]}
19... d5 {[%clk 0:02:24.7]} 20. cxd5 {[%clk 0:01:57.6]} 20... Bxd5 {[%clk
0:02:19.9]} 21. e4 {[%clk 0:01:57.4]} 21... Nxe4 {[%clk 0:02:08.8]} 22. Qe5+
{[%clk 0:01:45.2]} 22... Qd6 {[%clk 0:02:05]} 23. Qxd6+ {[%clk 0:01:34.4]} 23...
Nxd6 {[%clk 0:02:04.8]} 24. Rh2 {[%clk 0:01:29.7]} 24... Bxa2+ {[%clk
0:02:03.1]} 25. Kxa2 {[%clk 0:01:28.5]} 25... Rxc2 {[%clk 0:02:02.8]} 26. Kb3
{[%clk 0:01:28.5]} 26... Rhc8 {[%clk 0:02:01.7]} 27. Rxh6 {[%clk 0:01:26.1]}
27... Nb5 {[%clk 0:01:55.3]} 28. Rh7 {[%clk 0:01:25.2]} 28... Nd4+ {[%clk
0:01:26.8]} 29. Ka2 {[%clk 0:01:24.5]} 29... Nb5 {[%clk 0:01:10]} 30. Kb1 {[%clk
0:01:21.3]} 30... R8c7 {[%clk 0:01:00.2]} 31. Rg7 {[%clk 0:01:19.8]} 31... f6
{[%clk 0:00:31.1]} 32. Rg6 {[%clk 0:01:17.9]} 1-0

[Event "*** Titled Tuesday Blitz"]
[Site "Chess.com"]
[Date "2021.04.06"]
[Round "10"]
[White "yonaltimur"]
[Black "shreyansshah123"]
[Result "0-1"]
[WhiteElo "1757"]
[BlackElo "1648"]
[TimeControl "180+1"]
[EndTime "11:55:10 PDT"]
[Termination "shreyansshah123 won on time"]

1. e4 {[%clk 0:03:00.9]} 1... c5 {[%clk 0:02:57.3]} 2. Nf3 {[%clk 0:02:59.2]}
2... d6 {[%clk 0:02:56.9]} 3. d4 {[%clk 0:02:51.6]} 3... cxd4 {[%clk 0:02:56.5]}
4. Qxd4 {[%clk 0:02:52]} 4... Nc6 {[%clk 0:02:55.4]} 5. Bb5 {[%clk 0:02:42]}
5... Bd7 {[%clk 0:02:54.1]} 6. Qd3 {[%clk 0:02:40]} 6... a6 {[%clk 0:02:53.2]}
7. Bxc6 {[%clk 0:02:37.3]} 7... bxc6 {[%clk 0:02:54.1]} 8. c4 {[%clk 0:02:36.2]}
8... e6 {[%clk 0:02:52.2]} 9. O-O {[%clk 0:02:34.8]} 9... Nf6 {[%clk 0:02:51.2]}
10. Nc3 {[%clk 0:02:32.7]} 10... Qa5 {[%clk 0:02:48.1]} 11. b3 {[%clk
0:02:28.2]} 11... d5 {[%clk 0:02:47.8]} 12. exd5 {[%clk 0:02:14.8]} 12... cxd5
{[%clk 0:02:42.3]} 13. cxd5 {[%clk 0:02:11.2]} 13... Nxd5 {[%clk 0:02:43.2]} 14.
Nxd5 {[%clk 0:02:08.9]} 14... Qxd5 {[%clk 0:02:44.1]} 15. Qxd5 {[%clk 0:02:08]}
15... exd5 {[%clk 0:02:45]} 16. Re1+ {[%clk 0:02:08]} 16... Be6 {[%clk
0:02:45.3]} 17. Nd4 {[%clk 0:02:07.2]} 17... Kd7 {[%clk 0:02:45.4]} 18. Bf4
{[%clk 0:01:48.9]} 18... Bc5 {[%clk 0:02:28.8]} 19. Nf3 {[%clk 0:01:39.3]} 19...
h6 {[%clk 0:02:21.2]} 20. Ne5+ {[%clk 0:01:21.1]} 20... Ke8 {[%clk 0:02:06.9]}
21. Rac1 {[%clk 0:01:15.7]} 21... Bd6 {[%clk 0:02:03.5]} 22. Nxf7 {[%clk
0:00:25.8]} 22... Kxf7 {[%clk 0:01:55.9]} 23. Bxd6 {[%clk 0:00:23.8]} 23... Rhc8
{[%clk 0:01:54.9]} 24. f4 {[%clk 0:00:20.2]} 24... Kf6 {[%clk 0:01:46.5]} 25.
Kf2 {[%clk 0:00:19.1]} 25... Kf7 {[%clk 0:01:35.4]} 26. Ke3 {[%clk 0:00:18.3]}
26... g6 {[%clk 0:01:35.3]} 27. Kd4 {[%clk 0:00:17.9]} 27... Kf6 {[%clk
0:01:35.3]} 28. a4 {[%clk 0:00:13.3]} 28... a5 {[%clk 0:01:34.4]} 29. g3 {[%clk
0:00:05.4]} 29... Kf7 {[%clk 0:01:33.4]} 30. Rf1 {[%clk 0:00:04]} 30... Kf6
{[%clk 0:01:33.3]} 31. Bc5 {[%clk 0:00:03.5]} 31... Kf7 {[%clk 0:01:33.2]} 32.
Rf3 {[%clk 0:00:02.6]} 32... Kg7 {[%clk 0:01:32]} 33. Rfc3 {[%clk 0:00:02.6]}
33... Bf7 {[%clk 0:01:30.3]} 34. Bb6 {[%clk 0:00:02.7]} 34... Rxc3 {[%clk
0:01:29.5]} 35. Rxc3 {[%clk 0:00:02.3]} 35... Re8 {[%clk 0:01:30]} 36. Rc7
{[%clk 0:00:02.1]} 36... Re4+ {[%clk 0:01:29.9]} 37. Kc5 {[%clk 0:00:02.1]}
37... Re2 {[%clk 0:01:28.7]} 38. Kd6 {[%clk 0:00:01.8]} 38... Re6+ {[%clk
0:01:28.1]} 39. Kd7 {[%clk 0:00:01.3]} 39... Rxb6 {[%clk 0:01:27.5]} 0-1